{"text_format":"1","workbook":"xlsx","n_sheets":3,"sheets":["заявка","Лист2","Лист3"],"not_rendered":{"charts":0,"images":2,"macros":1,"external_links":0,"defined_names":3,"comments":0,"pivot_tables":0},"unopened":[],"bounds":{"document_bytes":16777216,"sheet_cells":100000,"rows_first":2000,"rows_last":500,"rows_between":2000,"halvings":0,"cell_chars":16384,"cell_head_chars":4096},"cells_cut":0,"cells_raw":0,"read":"whole","date_system":"1900"}

{"sheet":"заявка","index":0,"n_rows":59,"n_cols":107,"rows_kept":59,"cut":false,"hidden":false,"merged":[[2,3,2,8],[4,3,4,8],[3,3,3,8],[58,6,58,8],[47,2,47,8],[49,2,49,8],[53,2,53,8],[54,2,54,8],[55,2,55,8],[7,2,7,7],[9,3,9,7],[13,3,13,7],[11,3,11,7],[12,3,12,7],[21,3,21,7],[24,3,24,7],[38,6,38,7],[38,3,38,5],[37,6,37,7],[37,3,37,5],[35,2,35,7],[28,2,28,7],[31,4,32,7],[33,2,33,8],[17,3,17,7],[18,3,18,7],[27,3,27,7],[5,2,5,7],[6,2,6,7],[20,2,20,7],[22,3,22,7],[26,2,26,7],[8,3,8,7],[10,2,10,7],[14,2,14,7],[15,3,15,7],[16,3,16,7],[23,3,23,7]]}
[]
[null,null,null,null,null,null,null,null,"Руководителю регионального отделения по проведению отборочного этапа Конкурса"]
[null,null,"город (организация):","Волгоград (ООО «НВЦ «Сварка») "]
[null,null,"контакты:",{"$f":"IFERROR(IF(VLOOKUP(D3,Лист2!G6:J30,2,0)=0,\"\",VLOOKUP(D3,Лист2!G6:J30,2,0)),\"\")","v":"+7 (8442) 73-91-78 \nvolga-weld@yandex.ru"}]
[null,null,"сроки проведения:",{"$f":"IFERROR(IF(VLOOKUP(D3,Лист2!G6:J30,3,0)=0,\"\",VLOOKUP(D3,Лист2!G6:J30,3,0)),\"\")","v":"07-09.09.2021"}]
[null,null,"ЗАЯВКА НА УЧАСТИЕ В ОТБОРОЧНОМ ЭТАПЕ ВСЕРОССИЙСКОГО КОНКУРСА"]
[null,null,"ПО НЕРАЗРУШАЮЩЕМУ КОНТРОЛЮ «ДЕФЕКТОСКОПИСТ-2021»"]
[null,null,"Данные об организации, направляющей специалиста на конкурс"]
[null,null,"Наименование организации"]
[null,null,"ИНН"]
[null,null,"Руководитель"]
[null,null,"ФИО"]
[null,null,"должность",null,null,null,null,null,","]
[null,null,"действующий на основании:"]
[null,null,"Контактное лицо (по вопросам участия в Конкурсе)"]
[null,null,"ФИО"]
[null,null,"должность"]
[null,null,"телефон"]
[null,null,"e-mail"]
[]
[null,null,"     Настоящим прошу зарегистрировать специалиста:"]
[null,null,"ФИО (полностью)"]
[null,null,"должность"]
[null,null,"Сведения о квалификации (метод/уровень)"]
[null,null,"Стаж работы в области НК, лет"]
[]
[null,null,"в качестве участника Конкурса на базе регионального отделения в городе (город из перечня, "]
[null,null,"размещенного на сайте ronktd.ru)"]
[null,null,"в номинации/-ях (выбрать одну или несколько  из перечня)"]
[null,null,"ВИК",null,null,"МК",null,null,null,null,null,null,null,null,null,null,null,null,null,null,null,null,null,null,null,null,null,null,null,null,null,null,null,null,null,null,null,null,null,null,null,null,null,null,null,null,null,null,null,null,null,null,null,null,null,null,null,null,null,null,null,null,null,null,null,null,null,null,null,null,null,null,null,null,null,null,null,null,null,null,null,null,null,null,null,null,null,null,null,null,null,null,null,null,null,null,null,null,null,null,null,null,null,0,null,null,0]
[null,null,"УК",null,null,"ПВК",null,null,null,null,null,null,null,null,null,null,null,null,null,null,null,null,null,null,null,null,null,null,null,null,null,null,null,null,null,null,null,null,null,null,null,null,null,null,null,null,null,null,null,null,null,null,null,null,null,null,null,null,null,null,null,null,null,null,null,null,null,null,null,null,null,null,null,null,null,null,null,null,null,null,null,null,null,null,null,null,null,null,null,null,null,null,null,null,null,null,null,null,null,null,null,null,null,0,null,null,0]
[null,null,"РК",null,"допустимые сочетания: ВИК+УК или ВИК+РК,           или ВИК+УК+РК, или ВИК+МК+ПВК",null,null,null,null,null,null,null,null,null,null,null,null,null,null,null,null,null,null,null,null,null,null,null,null,null,null,null,null,null,null,null,null,null,null,null,null,null,null,null,null,null,null,null,null,null,null,null,null,null,null,null,null,null,null,null,null,null,null,null,null,null,null,null,null,null,null,null,null,null,null,null,null,null,null,null,null,null,null,null,null,null,null,null,null,null,null,null,null,null,null,null,null,null,null,null,null,null,null,0]
[]
[null,null,"       Подписанием настоящей заявки подтверждаю, что указанный в настоящей заявке участник Конкурса ознакомлен с Положением о Конкурсе и иной официально опубликованной конкурсной документацией, размещенной  в интернет по адресу: https://ronktd.ru/directions/konkurs/, которые являются обязательными для участника Конкурса. "]
[null,null,"Приложение:"]
[null,null,"1) Согласие на обработку персональных данных"]
[]
[null,null,"Руководитель организации"]
[null,null,null,"подпись",null,null,"И.О. Фамилия "]
[null,null,"МП"]
[]
[null,null,null,null,null,null,null,null,"Приложение к заявке на участие\n"]
[null,null,null,null,null,null,null,null,"в Конкурсе «Дефектоскопист 2021»"]
[null,null,null,null,null,null,null,null,"(заполняется лично конкурсантом)"]
[]
[]
[]
[null,null,"Согласие на обработку персональных данных"]
[null,null,"    Я,"]
[null,null,"Фамилия Имя Отчество, дата рождения"]
[]
[]
[]
[null,null,"наименование документа, удостоверяющего личность, номер документа, кем выдан и когда"]
[null,null,"согласен (-на) на обработку в соответствии с Федеральным законом от 27 июля 2006 г. № 152- ФЗ «О персональных данных» (Собрание законодательства Российской Федерации, 2006, № 31, ст. 3451) моих персональных данных, указанных в настоящей заявке и прилагаемых к ней документах (фамилия, имя, отчество (при наличии), дата и место рождения, реквизиты документа, удостоверяющего личность (наименование документа, серия, номер, кем выдан и когда, место проживания (регистрации), место работы, должность, образование, квалификация, аттестация), а также результатов моего участия во Всероссийском конкурсе РОНКТД по неразрушающему контролю «Дефектоскопист 2021», внесения и хранения соответствующей информации в электронных информационных системах и на сайтах Российского общества по неразрушающему контролю и технической диагностике и Саморегулируемой организации Ассоциация «Национальное Агентство Контроля Сварки»."]
[null,null,"    Я уведомлен (-а) и понимаю, что под обработкой персональных данных подразумевается совершение следующих действий (операций): сбор, обработка, запись, систематизация, накопление, хранение, уточнение (обновление, изменение), извлечение, использование, подтверждение, передача (распространение, предоставление, доступ), обезличивание, блокирование, удаление, уничтожение персональных данных по истечении срока действия настоящего согласия в соответствии с Федеральным законом от 27 июля 2006 г. N 152-ФЗ «О персональных данных»."]
[]
[]
[null,null,null,"«_____»__________2021",null,null,"Фамилия И.О."]

{"sheet":"Лист2","index":1,"n_rows":127,"n_cols":9,"rows_kept":127,"cut":false,"hidden":false,"merged":[[3,2,4,2],[3,3,4,3],[3,4,4,4],[3,5,4,5]]}
[]
[]
[]
[null,null,"Наименование центра СНК ОПО РОНКТД","Город","Телефон, e-mail","Сроки проведения"]
[]
[null,null,"ООО «НАКС Архангельск»","Архангельск","+7 (8182) 60-89-39 \nnaksarh@mail.ru","06-14.09.2021",{"$f":"IF(LEN(C6)<3,\"\",CONCATENATE(D6,\" (\",C6,\") \"))","v":"Архангельск (ООО «НАКС Архангельск») "},{"$f":"E6","v":"+7 (8182) 60-89-39 \nnaksarh@mail.ru"},{"$f":"F6","v":"06-14.09.2021"}]
[null,null,"ООО «Тихоокеанский ГАЦ»","Владивосток","+7 (423) 260-42-10 \n torgac@mail.ru","06-10.09.2021","Владивосток (ООО «Тихоокеанский ГАЦ») ",{"$f":"E7","v":"+7 (423) 260-42-10 \n torgac@mail.ru"},{"$f":"F7","v":"06-10.09.2021"}]
[null,null,"ООО «НВЦ «Сварка»","Волгоград","+7 (8442) 73-91-78 \nvolga-weld@yandex.ru","07-09.09.2021","Волгоград (ООО «НВЦ «Сварка») ","+7 (8442) 73-91-78 \nvolga-weld@yandex.ru","07-09.09.2021"]
[null,null,"АНО «ВРАЦ»","Вологда","+7 (8172) 27-23-03 \nvikulov@vologda.ru","08-09.09.2021","Вологда (АНО «ВРАЦ») ","+7 (8172) 27-23-03 \nvikulov@vologda.ru","08-09.09.2021"]
[null,null,"ООО «НАКС-Урал»","Екатеринбург","+7 (343)264-90-12 \nnaks-ural@naks-ural.ru","13-15.09.2021","Екатеринбург (ООО «НАКС-Урал») ","+7 (343)264-90-12 \nnaks-ural@naks-ural.ru","13-15.09.2021"]
[null,null,"ООО «НАКС-Ижевск»","Ижевск","+7 (3412) 48-35-38 \nac@naks-izhevsk.ru","06-10.09.2021","Ижевск (ООО «НАКС-Ижевск») ","+7 (3412) 48-35-38 \nac@naks-izhevsk.ru","06-10.09.2021"]
[null,null,"ООО «Центр НК»","Казань","+7 (843) 571-05-02 \nmail@centr-nk.ru","26-28.07.2021","Казань (ООО «Центр НК») ","+7 (843) 571-05-02 \nmail@centr-nk.ru","26-28.07.2021"]
[null,null,"ООО «КЦСК»","Кемерово","+7 (3842)44-14-92 \nkcsk@naks.ru","17-19.08.2021","Кемерово (ООО «КЦСК») ","+7 (3842)44-14-92 \nkcsk@naks.ru","17-19.08.2021"]
[null,null,"ООО «ЮРГАЦ №3 НАКС»","Краснодар","+7 (861) 224-57-68 \nyur3gac@naks.ru  ","06-08.09.2021","Краснодар (ООО «ЮРГАЦ №3 НАКС») ","+7 (861) 224-57-68 \nyur3gac@naks.ru  ","06-08.09.2021"]
[null,null,"ООО «ГАЦ-ССР»","Красноярск","+7 (391) 230-06-93 \ngac@gacssr.ru","17-19.08.2021","Красноярск (ООО «ГАЦ-ССР») ","+7 (391) 230-06-93 \ngac@gacssr.ru","17-19.08.2021"]
[null,null,"ООО \"Сертинк Плюс\"","Москва","+7 (977) 507-42-02 info@sertinkplus.ru",null,"Москва (ООО \"Сертинк Плюс\") ","+7 (977) 507-42-02 info@sertinkplus.ru",0]
[null,null,"ООО «ГАЦ ВВР»","Нижний Новгород","+7 (831) 216-43-89 \ninfo@gacvvr.ru","07-09.09.2021","Нижний Новгород (ООО «ГАЦ ВВР») ","+7 (831) 216-43-89 \ninfo@gacvvr.ru","07-09.09.2021"]
[null,null,"ООО «Аттестационный центр «Сварка»","Новосибирск","+7 (383) 363-00-27 \nsvarka@ac-svarka.ru","02-03.09.2021","Новосибирск (ООО «Аттестационный центр «Сварка») ","+7 (383) 363-00-27 \nsvarka@ac-svarka.ru","02-03.09.2021"]
[null,null,"ООО «НАКС-ПФО»","Оренбург","+7 (3532) 30-60-09 \nmail@nakspfo.ru","10-12.08.2021","Оренбург (ООО «НАКС-ПФО») ","+7 (3532) 30-60-09 \nmail@nakspfo.ru","10-12.08.2021"]
[null,null,"ООО «НАКС-Пенза»","Пенза","+7 (8412) 20-37-40 \noffice@naks-penza.ru","02-13\".08.2021","Пенза (ООО «НАКС-Пенза») ","+7 (8412) 20-37-40 \noffice@naks-penza.ru","02-13\".08.2021"]
[null,null,"ООО \"НПП \"КОМПЛЕКС\"","Петропавловск-Камчатский","+7 (4152) 30-71-81 KhizevaEA@nppkomplex.ru",null,"Петропавловск-Камчатский (ООО \"НПП \"КОМПЛЕКС\") ","+7 (4152) 30-71-81 KhizevaEA@nppkomplex.ru",0]
[null,null,"ООО «ГОССп ЮР»","Ростов-на-Дону","+7 (863) 333-01-23 \ngac-ur@yandex.ru ","06-10.09.2021","Ростов-на-Дону (ООО «ГОССп ЮР») ","+7 (863) 333-01-23 \ngac-ur@yandex.ru ","06-10.09.2021"]
[null,null,"ООО «СЗ АНТЦ «Энергомонтаж»","Санкт-Петербург","+7 (812) 245-69-64 \nmail@antcszem.ru","06-10.09.2021","Санкт-Петербург (ООО «СЗ АНТЦ «Энергомонтаж») ","+7 (812) 245-69-64 \nmail@antcszem.ru","06-10.09.2021"]
[null,null,"ООО «Центр СМТК»","Саранск, Ульяновск","+7 (8342) 23-35-81 \nsmtksaransk@naks.ru","02-13.08.2021","Саранск, Ульяновск (ООО «Центр СМТК») ","+7 (8342) 23-35-81 \nsmtksaransk@naks.ru","02-13.08.2021"]
[null,null,"ООО «НАКС-Саратов»","Саратов","+7 (8452) 39-96-88 \nics_svarka@mail.ru","02-13\".08.2021","Саратов (ООО «НАКС-Саратов») ","+7 (8452) 39-96-88 \nics_svarka@mail.ru","02-13\".08.2021"]
[null,null,"ООО «НАКС-Технология»","Стерлитамак","+7 (347) 246-96-44 \nsdg@naks-rb.ru","06-08.09.2021","Стерлитамак (ООО «НАКС-Технология») ","+7 (347) 246-96-44 \nsdg@naks-rb.ru","06-08.09.2021"]
[null,null,"ООО \"НАКС-Тверь\"","Тверь","+7 (495) 532-77-22 infotver@naks.ru",null,"Тверь (ООО \"НАКС-Тверь\") ","+7 (495) 532-77-22 infotver@naks.ru",0]
[null,null,"ООО «ССДЦ «Дельта»","Тольятти","+7 (8482) 55-57-42 \noffice@ssdc-delta.ru\n\n","07-09.09.2021","Тольятти (ООО «ССДЦ «Дельта») ","+7 (8482) 55-57-42 \noffice@ssdc-delta.ru\n\n","07-09.09.2021"]
[null,null,"ООО «АЦ ПРОМЭКСПЕРТ»","Тула","+7 (4872) 56-81-26 \nmail@acpromexpert.ru","13,09-15.09.2021","Тула (ООО «АЦ ПРОМЭКСПЕРТ») ","+7 (4872) 56-81-26 \nmail@acpromexpert.ru","13,09-15.09.2021"]
[null,null,"ООО «АЦ СТС»","Уфа","+7(347)246-87-25 \nacsts@ufamail.ru","06-08.09.2021","Уфа (ООО «АЦ СТС») ","+7(347)246-87-25 \nacsts@ufamail.ru","06-08.09.2021"]
[null,null,"ООО «ЦПС «Сварка и Контроль»","Челябинск","+7 (351) 729-94-20 \ncentr@svarka74.ru   ","13-15.09.2021","Челябинск (ООО «ЦПС «Сварка и Контроль») ","+7 (351) 729-94-20 \ncentr@svarka74.ru   "]
[null,null,"ООО АЦ «ОСТРОВНОЙ»","Южно-Сахалинск","+7 (4242) 46-61-39 \ntechincome.gena@mail.ru","08-10.09.2021","Южно-Сахалинск (ООО АЦ «ОСТРОВНОЙ») "]
[null,null,"ООО «НАКС-Ярославль»","Ярославль","+7 (4852) 59-41-19 \nSvarka@NAKS-Yaroslavl.ru","06-08.09.2021","Ярославль (ООО «НАКС-Ярославль») "]
[null,null,null,null,null,null,""]
[null,null,null,null,null,null,""]
[null,null,null,null,null,null,""]
[null,null,null,null,null,null,""]
[null,null,null,null,null,null,{"$f":"IF(LEN(C38)<3,\"\",CONCATENATE(D38,\" (\",C38,\") \"))","v":""}]
[null,null,null,null,null,null,""]
[null,null,null,null,null,null,""]
[null,null,null,null,null,null,""]
[null,null,null,null,null,null,""]
[null,null,null,null,null,null,""]
[null,null,null,null,null,null,""]
[null,null,null,null,null,null,""]
[null,null,null,null,null,null,""]
[null,null,null,null,null,null,""]
[null,null,null,null,null,null,""]
[null,null,null,null,null,null,""]
[null,null,null,null,null,null,""]
[null,null,null,null,null,null,""]
[null,null,null,null,null,null,""]
[null,null,null,null,null,null,""]
[null,null,null,null,null,null,""]
[null,null,null,null,null,null,""]
[null,null,null,null,null,null,""]
[null,null,null,null,null,null,""]
[null,null,null,null,null,null,""]
[null,null,null,null,null,null,""]
[null,null,null,null,null,null,""]
[null,null,null,null,null,null,""]
[null,null,null,null,null,null,""]
[null,null,null,null,null,null,""]
[null,null,null,null,null,null,""]
[null,null,null,null,null,null,""]
[null,null,null,null,null,null,""]
[null,null,null,null,null,null,""]
[null,null,null,null,null,null,""]
[null,null,null,null,null,null,""]
[null,null,null,null,null,null,{"$f":"IF(LEN(C70)<3,\"\",CONCATENATE(D70,\" (\",C70,\") \"))","v":""}]
[null,null,null,null,null,null,""]
[null,null,null,null,null,null,""]
[null,null,null,null,null,null,""]
[null,null,null,null,null,null,""]
[null,null,null,null,null,null,""]
[null,null,null,null,null,null,""]
[null,null,null,null,null,null,""]
[null,null,null,null,null,null,""]
[null,null,null,null,null,null,""]
[null,null,null,null,null,null,""]
[null,null,null,null,null,null,""]
[null,null,null,null,null,null,""]
[null,null,null,null,null,null,""]
[null,null,null,null,null,null,""]
[null,null,null,null,null,null,""]
[null,null,null,null,null,null,""]
[null,null,null,null,null,null,""]
[null,null,null,null,null,null,""]
[null,null,null,null,null,null,""]
[null,null,null,null,null,null,""]
[null,null,null,null,null,null,""]
[null,null,null,null,null,null,""]
[null,null,null,null,null,null,""]
[null,null,null,null,null,null,""]
[null,null,null,null,null,null,""]
[null,null,null,null,null,null,""]
[null,null,null,null,null,null,""]
[null,null,null,null,null,null,""]
[null,null,null,null,null,null,""]
[null,null,null,null,null,null,""]
[null,null,null,null,null,null,""]
[null,null,null,null,null,null,{"$f":"IF(LEN(C102)<3,\"\",CONCATENATE(D102,\" (\",C102,\") \"))","v":""}]
[null,null,null,null,null,null,""]
[null,null,null,null,null,null,""]
[null,null,null,null,null,null,""]
[null,null,null,null,null,null,""]
[null,null,null,null,null,null,""]
[null,null,null,null,null,null,""]
[null,null,null,null,null,null,""]
[null,null,null,null,null,null,""]
[null,null,null,null,null,null,""]
[null,null,null,null,null,null,""]
[null,null,null,null,null,null,""]
[null,null,null,null,null,null,""]
[null,null,null,null,null,null,""]
[null,null,null,null,null,null,""]
[null,null,null,null,null,null,""]
[null,null,null,null,null,null,""]
[null,null,null,null,null,null,""]
[null,null,null,null,null,null,""]
[null,null,null,null,null,null,""]
[null,null,null,null,null,null,""]
[null,null,null,null,null,null,""]
[null,null,null,null,null,null,""]
[null,null,null,null,null,null,""]
[null,null,null,null,null,null,""]
[null,null,null,null,null,null,""]

{"sheet":"Лист3","index":2,"n_rows":0,"n_cols":0,"rows_kept":0,"cut":false,"hidden":false,"merged":[]}